Cogmind - Beta 14 @@@ ROGUE MODE // 2025.03.05 @ 20:49:15 Player: LightKnight Result: Core destroyed Performance ------------- Evolutions (9) 4500 Regions Visited (22) 4400 Robots Destroyed (104) 520 Value Destroyed (4523) 4523 Prototype IDs (59) 1180 Alien Tech Used (4) 800 Bonus (7058) 7058 TOTAL SCORE: 22981 Bonus ------- High Alert Combat Kills 153 Follower Combat Kills 1538 Network Hubs Disabled 200 Registered with UFD 300 Met Zhirov 300 Built Enhanced Grunts 300 Found Hidden Lab 3000 Used Core Reset Matrix 3000 Pursued by Intercept 500 Friendly Fire -2233 Cogmind --------- Core Integrity 0/1600 Matter 226/300 Energy 100/100 System Corruption 0% Temperature Cool (0) Movement Core (50) Location -1/Access Parts ------- > --- POWER (2) -------- (None) > --- PROPULSION (6) --- (None) > --- UTILITY (13) ----- (None) > --- WEAPON (4) ------- (None) > --- INVENTORY (5) ---- Advanced Gravity Neutralizer Graphene Brace Advanced Recalibrator Guided Remote Datajack Thunder Hammer Peak State ------------ > --- POWER ------------ Neutrino Core Quantum Reactor > --- PROPULSION ------- Centrium Heavy Treads Centrium Heavy Treads > --- UTILITY ---------- Advanced Cooling System Medium Storage Unit Enhanced Optical Array Centrium Medium Armor Plating Centrium Medium Armor Plating Centrium Medium Armor Plating Advanced Shield Generator Improved Hacking Suite > --- WEAPON ----------- Heavy Phase Cannon Advanced KE Penetrator Advanced KE Penetrator > --- INVENTORY -------- Advanced Heat Sink Coolant Injector Improved Coolant Injector Recoil Nullifier Hardlight Generator Improved Trap Extractor Improved Arc Projector Antimatter Cannon Remote Datajack DRS Beacon [Rating: 128] Favorites ----------- Power Light Nuclear Core Engine Light Angular Momentum Engine Power Core Light Nuclear Core Reactor Quantum Reactor Propulsion Centrium Heavy Treads Treads Centrium Heavy Treads Leg Armored Leg Wheel Compact Wheel Hover Unit Backup Propulsion III Flight Unit Impulse Thruster Array Utility Medium Storage Unit Device Disposable Heat Sink Storage Medium Storage Unit Processor Enhanced Optical Array Hackware Improved Hacking Suite Protection Centrium Medium Armor Plating Weapon Advanced KE Penetrator Energy Gun Beam Rifle Energy Cannon Advanced Plasma Cannon Ballistic Gun Advanced KE Penetrator Ballistic Cannon Antimatter Cannon Launcher Precision Rocket Launcher Special Weapon Remote Datajack Impact Weapon Thunder Hammer Piercing Weapon Spear Special Melee Weapon Datajack Build | -11 -10 -10 -10 -9 -9 -6 -6 -6 -6 -6 -5 -5 -5 -5 -4 -4 -4 -4 -3 -3 -2 -1 ------- Run | Yrd Mat Min Sub Rec Scr Fac Ext Cet Arc Hub Fac Upp Upp Zhi Pro Fac Arm Lab Res Tes Res Acc Slots Evolved 18 | . . . . . . 8 . . . . 2 . . . . 2 . . 2 . 2 2 Power 1 | . . . . . . 1 . . . . . . . . . . . . . . . . Propulsion 4 | . . . . . . 2 . . . . . . . . . . . . 2 . . . Utility 11 | . . . . . . 4 . . . . 2 . . . . 1 . . . . 2 2 Weapon 2 | . . . . . . 1 . . . . . . . . . 1 . . . . . . Parts Attached 144 | . . 8 . 10 20 15 15 12 . 1 15 2 6 2 1 5 18 2 6 2 2 2 Power 16 | . . 1 . 1 2 1 1 3 . . 2 1 . . . . 4 . . . . . Engine 3 | . . 1 . . 2 . . . . . . . . . . . . . . . . . Core 11 | . . . . 1 . 1 1 1 . . 2 1 . . . . 4 . . . . . Reactor 2 | . . . . . . . . 2 . . . . . . . . . . . . . . Propulsion 40 | . . 5 . 2 8 5 6 2 . . . . 2 . . 1 4 . 2 . 2 1 Treads 7 | . . 3 . . . . . 2 . . . . 1 . . 1 . . . . . . Leg 23 | . . 2 . 1 4 5 6 . . . . . 1 . . . 4 . . . . . Wheel 4 | . . . . 1 3 . . . . . . . . . . . . . . . . . Hover . | . . . . . . . . . . . . . . . . . . . . . . . Flight 6 | . . . . . 1 . . . . . . . . . . . . . 2 . 2 1 Utility 47 | . . 1 . 2 7 7 2 2 . 1 8 1 1 2 1 2 4 . 4 1 . 1 Device 29 | . . 1 . 1 4 4 . . . 1 7 . 1 1 . 1 2 . 4 1 . 1 Storage 5 | . . . . 1 3 1 . . . . . . . . . . . . . . . . Processor 2 | . . . . . . 1 . . . . . . . . . . 1 . . . . . Hackware 3 | . . . . . . . 1 . . . . . . . . 1 1 . . . . . Protection 8 | . . . . . . 1 1 2 . . 1 1 . 1 1 . . . . . . . Artifact . | . . . . . . . . . . . . . . . . . . . . . . . Weapon 41 | . . 1 . 5 3 2 6 5 . . 5 . 3 . . 2 6 2 . 1 . . Energy Gun 11 | . . 1 . 3 . . 2 2 . . 1 . . . . . 2 . . . . . Energy Cannon 10 | . . . . . 3 . . . . . 2 . 2 . . 1 2 . . . . . Ballistic Gun 6 | . . . . . . 1 1 2 . . 1 . 1 . . . . . . . . . Ballistic Cannon 6 | . . . . . . . 2 . . . 1 . . . . 1 1 1 . . . . Launcher 1 | . . . . . . . . . . . . . . . . . 1 . . . . . Special Weapon 3 | . . . . . . . 1 1 . . . . . . . . . 1 . . . . Impact Weapon 1 | . . . . . . . . . . . . . . . . . . . . 1 . . Slashing Weapon . | . . . . . . . . . . . . . . . . . . . . . . . Piercing Weapon 1 | . . . . . . 1 . . . . . . . . . . . . . . . . Special Melee Weapon 2 | . . . . 2 . . . . . . . . . . . . . . . . . . Unidentified Prototypes 21 | . . . . . . . 1 4 . . . . . 3 . . 7 2 1 1 1 1 Parts Lost 53 | . . 4 4 1 . . 4 2 . 3 2 . 6 . 1 1 16 1 4 . . 4 Power 7 | . . 1 1 . . . . 1 . 1 1 . . . . . 2 . . . . . Propulsion 14 | . . 2 1 . . . . . . . . . 1 . . 1 4 . 2 . . 3 Utility 14 | . . . 1 . . . 1 1 . 1 . . 2 . 1 . 5 . 2 . . . Weapon 18 | . . 1 1 1 . . 3 . . 1 1 . 3 . . . 5 1 . . . 1 Highest Loss Streak 7 | . . 3 4 1 . . 1 2 . 2 1 . 6 . 1 1 7 1 2 . . 3 To Critical Strikes . | . . . . . . . . . . . . . . . . . . . . . . . Average Slot Usage (%) 83 | . 85 92 93 93 87 93 92 85 86 84 86 88 87 90 91 88 83 . 8 13 13 10 Engine 2 | . 14 14 13 . 4 5 . . . . . . . . . . . . 1 . . . Core 6 | . . . . 13 7 2 6 1 . . 5 11 11 11 11 10 9 . . . . . Treads 4 | . . . 28 3 . . . 10 13 13 11 11 10 11 11 13 6 . . . . . Leg 10 | . 28 23 . 10 14 25 26 4 . . . . 1 5 5 1 6 . . . . . Wheel 5 | . . . . 10 11 . . . . . . . . . . . . . . . . . Device 12 | . . 9 10 13 12 17 6 6 6 6 12 17 18 23 22 17 19 . 2 4 1 . Storage 9 | . 14 14 14 14 13 11 13 7 6 6 5 5 5 5 5 5 4 . . . . . Processor 2 | . . . . . . 5 6 6 6 6 5 5 5 5 5 5 7 . . . . . Hackware 2 | . . . . . . . 5 6 6 6 5 5 5 5 2 4 7 . . . . . Protection 3 | . . . . . . 2 6 10 13 13 15 11 7 2 5 8 1 . . . . . Energy Gun 7 | . 28 28 26 16 7 . 4 5 6 5 1 5 3 . . . 6 . 1 . . . Energy Cannon 5 | . . . . . 7 13 9 . . . 4 11 11 11 11 10 6 . . . . . Ballistic Gun 1 | . . . . . . 3 2 10 13 11 8 . 1 5 5 5 . . . . . . Special Melee Weapon 3 | . . . . 10 7 . . . . . . . . . . . . . . . . . Peak Build Rating 128 | 6 6 11 10 15 30 68 66 116 116 116 128 118 117 111 111 122 126 11 27 31 52 50 Average Rating 53 | 6 6 9 8 13 19 61 63 103 115 112 124 117 110 103 109 119 104 4 10 29 37 38 On Entrance 55 | 6 6 6 9 4 14 30 63 66 115 116 90 118 117 96 111 108 102 2 2 18 31 42 Naked Turns 132 | . . . . . 5 . . . . . . . . . . . 14 44 62 . . 7 Heaviest Build 107 | 12 12 13 13 90 107 71 64 83 83 83 94 78 78 70 87 96 106 5 13 8 8 4 Greatest Support 160 | 20 20 40 40 20 36 71 72 160 160 160 160 160 160 107 107 137 100 3 16 16 32 32 Greatest Overweight (x) 29 | . . . . 5 29 1 . . . . . . . . . 1 1 1 . . . 1 Average Overweight (x) 1 | . . . . 3 3 . . . . . . . . . . . . . . . . . Largest Inventory Capacity 25 | 8 8 8 8 25 25 10 10 10 10 10 10 10 10 10 10 10 10 5 5 5 5 5 Average Capacity 15 | 8 8 8 8 21 22 10 10 10 10 10 10 10 10 10 10 10 9 5 5 5 5 5 Most Carried 18 | 6 6 7 7 8 18 10 10 10 9 9 10 10 10 10 10 10 10 3 4 5 5 5 Average Carried 8 | 6 6 6 5 6 10 8 9 8 8 8 9 9 8 7 10 9 9 2 3 4 5 4 Final Capacity 25 | 8 8 8 8 25 10 10 10 10 10 10 10 10 10 10 10 10 5 5 5 5 5 5 Final Carried 10 | 6 6 4 7 5 10 10 10 8 9 8 10 10 5 10 10 10 3 3 4 5 5 5 Class Distribution -------------------- 39% | Commander-Mutant 17% | Scavenger-Tank 13% | Mutant 7% | Commander-Tank 6% | Alien-Mutant 5% | Tank 4% | Derelict-Tank Dominant Class ---------------- Mutant | -10/Materials Mutant | -10/Mines Mutant | -10/Subcaves Mutant | -9/Recycling Commander-Mutant | -9/Scraptown Commander-Mutant | -6/Factory Commander-Tank | -6/Extension Scavenger-Tank | -6/Cetus Scavenger-Tank | -6/Archives Scavenger-Tank | -6/Hub_04(d) Scavenger-Tank | -5/Factory Scavenger-Tank | -5/Upper Caves Scavenger-Tank | -5/Upper Caves Scavenger-Skirmisher | -5/Zhirov Tank | -4/Proximity Caves Derelict-Tank | -4/Factory Tank | -4/Armory Tank | -4/Lab Alien-Mutant | -3/Research Alien-Mutant | -3/Testing Alien-Mutant | -2/Research Alien-Mutant | -1/Access Resources | -11 -10 -10 -10 -9 -9 -6 -6 -6 -6 -6 -5 -5 -5 -5 -4 -4 -4 -4 -3 -3 -2 -1 ----------- Run | Yrd Mat Min Sub Rec Scr Fac Ext Cet Arc Hub Fac Upp Upp Zhi Pro Fac Arm Lab Res Tes Res Acc Matter Collected 2323 | 200 . 55 20 91 200 97 271 281 . 80 309 70 49 38 10 . 344 . . . . 208 Remotely . | . . . . . . . . . . . . . . . . . . . . . . . Salvage Created 4886 | . . 294 109 20 . 205 696 178 35 669 695 167 340 457 45 318 658 . . . . . Parts 218 | . . 12 8 4 . 8 40 11 4 15 38 13 12 4 5 13 31 . . . . . Haulers Intercepted 1 | . . . . . . . . . . . 1 . . . . . . . . . . . Recyclers Shooed 3 | . . 1 . . . . . . . . 1 . . . . 1 . . . . . . Parts Field Recycled . | . . . . . . . . . . . . . . . . . . . . . . . Retrieved Matter . | . . . . . . . . . . . . . . . . . . . . . . . Parts Self-Destructed 38 | . . . 6 . . . . . . . . 12 14 1 5 . . . . . . . Prevented 4 | . . . . . . . . . . . . 1 3 . . . . . . . . . Kills | -11 -10 -10 -10 -9 -9 -6 -6 -6 -6 -6 -5 -5 -5 -5 -4 -4 -4 -4 -3 -3 -2 -1 ------- Run | Yrd Mat Min Sub Rec Scr Fac Ext Cet Arc Hub Fac Upp Upp Zhi Pro Fac Arm Lab Res Tes Res Acc Combat Hostiles Destroyed 79 | . . 7 5 1 . 3 8 3 . 1 11 5 8 . 2 5 20 . . . . . Melee 1 | . . . . . . . . . . 1 . . . . . . . . . . . . Guns 29 | . . 7 5 1 . . 4 . . . 5 1 1 . . 1 4 . . . . . Cannons 37 | . . . . . . 3 4 3 . . 3 4 7 . 2 3 8 . . . . . AOE 12 | . . . . . . . . . . . 3 . . . . 1 8 . . . . . Classes Destroyed 16 | . . 3 1 1 . 4 1 . 1 1 1 . . . . 1 2 . . . . . Worker 4 | . . . . . . 1 . . . 3 . . . . . . . . . . . . Builder 4 | . . . . . . . . . . 2 2 . . . . . . . . . . . Hauler 1 | . . . . . . . . . . . 1 . . . . . . . . . . . Recycler 2 | . . 1 . . . . . . . 1 . . . . . . . . . . . . Operator 2 | . . . . . . . . . 1 . 1 . . . . . . . . . . . Watcher 5 | . . . . . . 1 2 . . 1 . . . . . . 1 . . . . . Swarmer 24 | . . 3 4 . . . . . . . 2 4 5 . 2 . 4 . . . . . Saboteur 4 | . . . . . . . . . . . . . . . . . 4 . . . . . Grunt 26 | . . 4 . . . 1 4 . . 1 4 . 3 . . 4 5 . . . . . Brawler 1 | . . . . . . . . . . . . . . . . 1 . . . . . . Protector 2 | . . . . 1 . . 1 . . . . . . . . . . . . . . . Sentry 5 | . . . . . . 1 3 . . . 1 . . . . . . . . . . . Specialist 1 | . . . . . . . . . . . . . . . . . 1 . . . . . Hunter 3 | . . . . . . . . . . . . 1 . . . . 2 . . . . . Programmer 10 | . . . . . . 1 1 . . . 4 . . . . . 4 . . . . . Cetus Guard 3 | . . . . . . . . 3 . . . . . . . . . . . . . . Enhanced Grunt 3 | . . . . . . . . . . 3 . . . . . . . . . . . . Subdweller 1 | . . . 1 . . . . . . . . . . . . . . . . . . . Thug 2 | . . . . . . . . . . 2 . . . . . . . . . . . . Guerrilla 1 | . . . . . . . 1 . . . . . . . . . . . . . . . Best Kill Streak 8 | . . 3 4 1 . 2 2 3 1 6 5 4 5 . 2 4 8 . . . . . Combat Bots Only 8 | . . 3 4 1 . 1 2 3 . 1 4 4 5 . 2 4 8 . . . . . Max Kills in Single Turn 7 | . . 1 1 1 . 2 2 1 1 7 3 1 1 . 1 1 3 . . . . . Gunslinging . | . . . . . . . . . . . . . . . . . . . . . . . Exploded 3 | . . . . . . . . . . . 2 . . . . 1 3 . . . . . Melee 1 | . . . . . . . . . . 1 . . . . . . . . . . . . Uniques/NPCs Destroyed . | . . . . . . . . . . . . . . . . . . . . . . . Combat | -11 -10 -10 -10 -9 -9 -6 -6 -6 -6 -6 -5 -5 -5 -5 -4 -4 -4 -4 -3 -3 -2 -1 -------- Run | Yrd Mat Min Sub Rec Scr Fac Ext Cet Arc Hub Fac Upp Upp Zhi Pro Fac Arm Lab Res Tes Res Acc Hostile Shots Fired 1487 | . 2 54 100 12 . 34 241 33 8 70 115 27 89 . 7 42 370 21 80 4 16 162 Missed 540 | . 1 13 31 5 . 20 89 9 2 20 31 6 17 . 4 13 162 5 34 2 7 69 Damage Taken 14926 | . 10 485 547 108 . 71 1209 541 178 1575 1332 329 1305 . 51 634 2748 411 1041 37 262 2052 Core 3925 | . . 70 106 47 . 17 93 21 48 75 100 17 105 . . . 508 179 801 . 128 1610 Absorbed by Shields 852 | . . . . . . 15 354 85 . . 398 . . . . . . . . . . . Ignored by Resistances 379 | . . . . . . 22 290 67 . . . . . . . . . . . . . . Core Remaining (%) 59 | 100 . . . . 10 . . . . 70 . . . . 77 . . 30 . 38 91 . Volleys Fired 292 | . . 32 17 9 . 13 52 8 8 2 43 10 17 20 3 11 43 4 . . . . Largest 4 | . . 2 2 2 . 3 3 3 3 3 3 3 3 2 2 4 4 1 . . . . Hottest 326 | . . 80 80 101 . 164 203 139 150 150 190 253 253 196 196 263 326 60 . . . . Shots Fired 733 | . . 64 34 12 . 31 141 20 18 6 106 30 50 22 6 38 151 4 . . . . Gun 382 | . . 64 34 12 . 7 60 12 18 6 75 10 16 . . 9 59 . . . . . Cannon 339 | . . . . . . 24 77 6 . . 31 20 34 22 6 29 87 3 . . . . Launcher 5 | . . . . . . . . . . . . . . . . . 5 . . . . . Special 7 | . . . . . . . 4 2 . . . . . . . . . 1 . . . . Kinetic 189 | . . . . . . 7 30 12 16 4 52 . 3 . . 18 44 3 . . . . Thermal 426 | . . 64 34 9 . 13 61 6 2 2 31 20 34 22 6 20 102 . . . . . Explosive 5 | . . . . . . . . . . . . . . . . . 5 . . . . . Electromagnetic 106 | . . . . 3 . 11 46 . . . 23 10 13 . . . . . . . . . Robot Hit Streak 17 | . . 8 13 4 . 4 10 7 8 1 7 2 5 17 1 7 8 . . . . . Robot Miss Streak 7 | . . 3 3 1 . 3 3 2 2 1 4 6 4 1 1 2 7 . . . . . Penetration Max 1 | . . . . . . . . . . . 1 . . . . 1 . . . . . . Secondary Targets 3 | . . 3 . . . . . . . . . . . . . . . . . . . . Max Gunslinging Chain 1 | . . 1 . . . . . . . . . . . . . . . . . . . . Shots Hit Robots 415 | . . 37 26 19 1 14 87 16 13 1 55 10 28 20 2 15 71 . . . . . Core Hits 192 | . . 15 9 3 . 7 34 7 6 15 25 6 12 7 2 10 34 . . . . . Critical Kills 5 | . . . . . . . . . . . 2 . . . . . 3 . . . . . Critical Parts Destroyed 8 | . . . . . . . 2 . 1 . 3 . . . . . 2 . . . . . Critical Strikes 22 | . . . . 1 . . 4 . 1 . 5 . . . . 2 9 . . . . . Burn 4 | . . . . 1 . . . . . . . . . . . . 3 . . . . . Destroy 15 | . . . . . . . 2 . 1 . 5 . . . . 2 5 . . . . . Blast 1 | . . . . . . . . . . . . . . . . . 1 . . . . . Corrupt 2 | . . . . . . . 2 . . . . . . . . . . . . . . . Melee Attacks 22 | . . . . 11 1 . . . . . . . . . . . . . . . 2 8 Impact 10 | . . . . . . . . . . . . . . . . . . . . . 2 8 Slashing . | . . . . . . . . . . . . . . . . . . . . . . . Piercing . | . . . . . . . . . . . . . . . . . . . . . . . Sneak Attacks 12 | . . . . 11 1 . . . . . . . . . . . . . . . . . Combat Hostiles 7 | . . . . 7 . . . . . . . . . . . . . . . . . . Follow-up Attacks . | . . . . . . . . . . . . . . . . . . . . . . . Damage Inflicted 13835 | . 4 410 288 98 . 777 2375 466 412 1365 2135 285 768 742 68 675 2943 . 5 . 2 17 Guns 4534 | . . 409 288 87 . 67 863 249 406 29 1149 42 136 . . 87 722 . . . . . Cannons 6318 | . . . . . . 323 1498 217 . . 512 243 632 742 68 502 1581 . . . . . Explosions 2883 | . . . . . . 387 . . . 1330 452 . . . . 74 640 . . . . . Melee . | . . . . . . . . . . . . . . . . . . . . . . . Ramming 100 | . 4 1 . 11 . . 14 . 6 6 22 . . . . 12 . . 5 . 2 17 Kinetic 3411 | . . . . . . 67 483 349 346 29 1042 . 48 . . 246 801 . . . . . Thermal 6998 | . . 409 288 73 . 553 1004 117 60 . 964 243 632 742 68 343 1502 . . . . . Explosive 714 | . . . . . . . . . . . . . . . . 74 640 . . . . . Electromagnetic 2612 | . . . . 14 . 157 874 . . 1330 107 42 88 . . . . . . . . . Impact . | . . . . . . . . . . . . . . . . . . . . . . . Slashing . | . . . . . . . . . . . . . . . . . . . . . . . Piercing . | . . . . . . . . . . . . . . . . . . . . . . . Highest Corruption 24 | . . . . . . . . . . 24 5 . . . . . 4 4 7 7 2 . Average Corruption 3 | . . . . . . . . . . 9 3 . . . . . 2 2 5 7 2 . Corruption Purged 5 | . . . . . . . . . . . 5 . . . . . . . . . . . Corruption Blocked . | . . . . . . . . . . . . . . . . . . . . . . . Effects 31 | . . . . . . . . . . 2 10 . . . . . 8 1 3 5 2 . Message Errors 5 | . . . . . . . . . . . 1 . . . . . 3 . . 1 . . Matter Fused 9 | . . . . . . . . . . 1 2 . . . . . 2 . 1 1 2 . Heat Flow Errors 5 | . . . . . . . . . . . 3 . . . . . 1 . 1 . . . Energy Discharges 3 | . . . . . . . . . . . 2 . . . . . . . . 1 . . Parts Rejected 1 | . . . . . . . . . . 1 . . . . . . . . . . . . Data Loss (minor) 2 | . . . . . . . . . . . 1 . . . . . 1 . . . . . Data Loss (major) 5 | . . . . . . . . . . . 1 . . . . . . 1 1 2 . . Misfires 1 | . . . . . . . . . . . . . . . . . 1 . . . . . Overload Shots . | . . . . . . . . . . . . . . . . . . . . . . . Overflow Damage 440 | . . . . . . 91 . . . 68 25 . . 63 . 3 190 . . . . . Projectiles 280 | . . . . . . . . . . . 24 . . 63 . 3 190 . . . . . Explosions 160 | . . . . . . 91 . . . 68 1 . . . . . . . . . . . Melee . | . . . . . . . . . . . . . . . . . . . . . . . Knockbacks 10 | . . . . . . . 2 . . . . . . . . 2 6 . . . . . Impact . | . . . . . . . . . . . . . . . . . . . . . . . Kinetic 10 | . . . . . . . 2 . . . . . . . . 2 6 . . . . . Secondary . | . . . . . . . . . . . . . . . . . . . . . . . Self-Inflicted Damage 200 | . . . . 5 . . . . . 105 79 . . . . . . . 2 . 1 8 Shots 3 | . . . . . . . . . . 1 2 . . . . . . . . . . . Rammed 13 | . . . . 2 . . . . 2 . 2 . . . . 1 . . 1 . 1 4 Targets Rammed 19 | . 2 1 . 2 . . 1 . 2 2 2 . . . . 1 . . 1 . 1 4 Kicked 4 | . 2 1 . . . . 1 . . . . . . . . . . . . . . . Crushed 2 | . . . . . . . . . . 2 . . . . . . . . . . . . Highest Temperature 338 | . . 280 . 191 . 108 258 8 30 111 338 199 199 78 78 191 200 . 52 . . . Average Temperature 96 | . . 117 . 99 . 43 62 6 20 47 96 119 126 43 38 107 118 . 52 . . . Received Heat Transfer 2124 | . 6 237 246 36 . 7 304 102 . 108 138 . 451 . . 150 123 . 60 21 63 72 Siege Activations . | . . . . . . . . . . . . . . . . . . . . . . . Robots Corrupted 4 | . . . . . . . . . . 4 . . . . . . . . . . . . Combat Hostiles . | . . . . . . . . . . . . . . . . . . . . . . . Parts Fried 17 | . . . . . . 1 4 . . 12 . . . . . . . . . . . . Impact Corruptions . | . . . . . . . . . . . . . . . . . . . . . . . Robots Melted . | . . . . . . . . . . . . . . . . . . . . . . . Combat Hostiles . | . . . . . . . . . . . . . . . . . . . . . . . Parts Melted 8 | . . 1 1 . . . 1 . . . . 2 . . . . 3 . . . . . Heat Transferred 9445 | . . 925 650 273 . 522 1591 222 74 . 831 298 859 886 100 435 1779 . . . . . Parts Sabotaged . | . . . . . . . . . . . . . . . . . . . . . . . Parts Stolen . | . . . . . . . . . . . . . . . . . . . . . . . Parts Stripped . | . . . . . . . . . . . . . . . . . . . . . . . Power Chain Reactions 2 | . . . . . . . . . . . 2 . . . . . . . . . . . Alert | -11 -10 -10 -10 -9 -9 -6 -6 -6 -6 -6 -5 -5 -5 -5 -4 -4 -4 -4 -3 -3 -2 -1 ------- Run | Yrd Mat Min Sub Rec Scr Fac Ext Cet Arc Hub Fac Upp Upp Zhi Pro Fac Arm Lab Res Tes Res Acc Peak Influence 826 | . 7 112 . 97 . 323 826 496 291 601 372 . . . . 191 287 . 99 148 251 437 Initial 462 | . . 2 . 85 . . 34 462 118 101 282 . . . . 81 4 . . 55 83 150 Average 152 | . 6 59 . 30 . 73 345 481 249 262 180 . . . . 85 61 . 32 105 138 237 Maximum Alert Level 3 | . . . . . . 1 3 2 1 2 1 . . . . . 1 . . . 1 2 Low Security (%) 74 | 100 100 100 . 100 . 93 40 . 22 67 58 . . . . 100 90 . 100 100 84 52 Level 1 15 | . . . . . . 6 22 3 77 . 41 . . . . . 9 . . . 15 42 Level 2 8 | . . . . . . . 22 96 . 32 . . . . . . . . . . . 5 Level 3 1 | . . . . . . . 14 . . . . . . . . . . . . . . . Level 4 . | . . . . . . . . . . . . . . . . . . . . . . . Level 5 . | . . . . . . . . . . . . . . . . . . . . . . . High Security . | . . . . . . . . . . . . . . . . . . . . . . . Max Security . | . . . . . . . . . . . . . . . . . . . . . . . Squads Dispatched 25 | . 2 . . . . 4 2 . . 2 4 . . . . . 3 . 3 1 . 4 Investigation 2 | . 1 . . . . . . . . . . . . . . . 1 . . . . . Extermination 4 | . . . . . . 1 . . . . 2 . . . . . 1 . . . . . Reinforcement 13 | . 1 . . . . 2 1 . . 1 2 . . . . . 1 . 3 1 . 1 Assault 3 | . . . . . . 1 1 . . 1 . . . . . . . . . . . . Garrison . | . . . . . . . . . . . . . . . . . . . . . . . Intercept 3 | . . . . . . . . . . . . . . . . . . . . . . 3 Searches Triggered 1 | . . . . . . . . . . . . . . . . . . . . . . 1 Construction Impeded 2 | . . . . . . . . . . 1 1 . . . . . . . . . . . Haulers Reinforced 1 | . . . . . . 1 . . . . . . . . . . . . . . . . Active Scanning Responses . | . . . . . . . . . . . . . . . . . . . . . . . Cargo Convoy Interrupts . | . . . . . . . . . . . . . . . . . . . . . . . Stealth | -11 -10 -10 -10 -9 -9 -6 -6 -6 -6 -6 -5 -5 -5 -5 -4 -4 -4 -4 -3 -3 -2 -1 --------- Run | Yrd Mat Min Sub Rec Scr Fac Ext Cet Arc Hub Fac Upp Upp Zhi Pro Fac Arm Lab Res Tes Res Acc Distress Signals 18 | . 1 . . . . . 2 2 . 3 . . . . . . 1 . . . 2 7 Communications Jammed . | . . . . . . . . . . . . . . . . . . . . . . . Distress Signals . | . . . . . . . . . . . . . . . . . . . . . . . Times Spotted 278 | . 7 7 11 2 . 6 37 5 8 24 17 5 13 . 8 11 29 1 19 6 10 52 Peak Tracking Total 24 | . 7 3 6 1 . 2 7 5 1 22 4 4 5 . 5 6 8 1 10 4 8 24 Tactical Retreats 29 | . . . 3 1 . . 2 . . . 2 . 1 . 2 . 1 . 4 2 2 9 Traps | -11 -10 -10 -10 -9 -9 -6 -6 -6 -6 -6 -5 -5 -5 -5 -4 -4 -4 -4 -3 -3 -2 -1 ------- Run | Yrd Mat Min Sub Rec Scr Fac Ext Cet Arc Hub Fac Upp Upp Zhi Pro Fac Arm Lab Res Tes Res Acc Traps Triggered 3 | . 1 . . . . . . . . . . . . . . . . . 1 . . 1 Indirectly . | . . . . . . . . . . . . . . . . . . . . . . . Trap Hack Attempts . | . . . . . . . . . . . . . . . . . . . . . . . Triggered . | . . . . . . . . . . . . . . . . . . . . . . . Disarmed . | . . . . . . . . . . . . . . . . . . . . . . . Reprogrammed . | . . . . . . . . . . . . . . . . . . . . . . . Reused . | . . . . . . . . . . . . . . . . . . . . . . . Traps Extracted . | . . . . . . . . . . . . . . . . . . . . . . . Installed . | . . . . . . . . . . . . . . . . . . . . . . . Triggered . | . . . . . . . . . . . . . . . . . . . . . . . Most Traps Carried 3 | . . . . . 3 3 3 3 3 3 3 3 3 3 3 3 3 . . . . . Machines | -11 -10 -10 -10 -9 -9 -6 -6 -6 -6 -6 -5 -5 -5 -5 -4 -4 -4 -4 -3 -3 -2 -1 ---------- Run | Yrd Mat Min Sub Rec Scr Fac Ext Cet Arc Hub Fac Upp Upp Zhi Pro Fac Arm Lab Res Tes Res Acc Machines Disabled 36 | . . . . . . 4 2 . 3 12 4 . . 1 . 4 3 1 . . 1 1 Max in Single Turn 12 | . . . . . . 4 1 . 1 12 3 . . 1 . 4 2 1 . . 1 1 Garrison Access 3 | . . . . . . 1 . . . 1 1 . . . . . . . . . . . Network Hub 1 | . . . . . . . . . . 1 . . . . . . . . . . . . Machines Repaired . | . . . . . . . . . . . . . . . . . . . . . . . Machines Dismantled . | . . . . . . . . . . . . . . . . . . . . . . . Machines Sabotaged . | . . . . . . . . . . . . . . . . . . . . . . . Overloaded Fab Kills . | . . . . . . . . . . . . . . . . . . . . . . . Hacking | -11 -10 -10 -10 -9 -9 -6 -6 -6 -6 -6 -5 -5 -5 -5 -4 -4 -4 -4 -3 -3 -2 -1 --------- Run | Yrd Mat Min Sub Rec Scr Fac Ext Cet Arc Hub Fac Upp Upp Zhi Pro Fac Arm Lab Res Tes Res Acc Machines Accessed 65 | . 2 . . 6 6 3 10 1 1 1 4 . . 4 . 3 4 2 5 3 7 3 Terminals 40 | . 2 . . 6 . 2 10 1 . 1 3 . . . . 3 2 . 3 2 3 2 Fabricators 3 | . . . . . . . . . . . . . . . . . 2 . . 1 . . Repair Stations 2 | . . . . . . . . . . . . . . . . . . . 1 . 1 . Recycling Units 1 | . . . . . . . . . . . . . . . . . . . . . 1 . Scanalyzers . | . . . . . . . . . . . . . . . . . . . . . . . Garrison Access 6 | . . . . . . 1 . . . . 1 . . . . . . . 1 . 2 1 Total Hacks 220 | . 5 . . 15 29 6 22 6 25 3 14 . . 17 . 7 13 19 11 4 10 14 Successful 133 | . 1 . . 5 29 3 10 2 25 . 7 . . 17 . 2 7 19 3 1 . 2 Failed 87 | . 4 . . 10 . 3 12 4 . 3 7 . . . . 5 6 . 8 3 10 12 Catastrophic 29 | . 1 . . 5 . 1 3 . . 1 1 . . . . 2 2 . 5 1 4 3 Database Lockouts . | . . . . . . . . . . . . . . . . . . . . . . . Manual 38 | . . . . 11 2 2 . 1 . . 9 . . . . . 3 1 4 1 3 1 Terminals 107 | . 5 . . 15 . 5 22 6 . 3 13 . . . . 7 7 . 7 2 4 11 Fabricators 8 | . . . . . . . . . . . . . . . . . 6 . . 2 . . Repair Stations 4 | . . . . . . . . . . . . . . . . . . . 2 . 2 . Recycling Units 2 | . . . . . . . . . . . . . . . . . . . . . 2 . Scanalyzers . | . . . . . . . . . . . . . . . . . . . . . . . Garrison Access 9 | . . . . . . 1 . . . . 1 . . . . . . . 2 . 2 3 Terminal Hacks 126 | . 1 . . 5 29 3 10 2 25 . 4 . . 17 . 2 4 19 2 1 . 2 Record 79 | . . . . . 28 . . 2 25 . . . . 5 . . . 19 . . . . Part Schematic 5 | . . . . . . . . . . . 1 . . 4 . . . . . . . . Robot Analysis 5 | . . . . 1 . . . . . . . . . 4 . . . . . . . . Prototype ID Bank 10 | . . . . 4 . . 1 . . . 1 . . 4 . . . . . . . . Open Door 8 | . . . . . . 1 7 . . . . . . . . . . . . . . . Level Access Points 2 | . . . . . . . . . . . . . . . . . . . 1 1 . . Branch Access Points 3 | . 1 . . . . . . . . . 1 . . . . . . . . . . 1 Emergency Access Points 1 | . . . . . . . . . . . . . . . . . 1 . . . . . Alert Level 2 | . . . . . . . 1 . . . . . . . . . 1 . . . . . Unreport Threat 2 | . . . . . . 1 . . . . . . . . . 1 . . . . . . Locate Traps 6 | . . . . . . 1 . . . . 1 . . . . 1 1 . 1 . . 1 Assault Status 1 | . . . . . . . 1 . . . . . . . . . . . . . . . Hauler Manifests 1 | . . . . . . . . . . . . . . . . . 1 . . . . . Derelict Proto ID Bank 1 | . . . . . 1 . . . . . . . . . . . . . . . . . Fabricator Hacks 3 | . . . . . . . . . . . . . . . . . 3 . . . . . Load Schematic 2 | . . . . . . . . . . . . . . . . . 2 . . . . . Build 1 | . . . . . . . . . . . . . . . . . 1 . . . . . Repair Station Hacks 1 | . . . . . . . . . . . . . . . . . . . 1 . . . Refit 1 | . . . . . . . . . . . . . . . . . . . 1 . . . Recycling Unit Hacks . | . . . . . . . . . . . . . . . . . . . . . . . Scanalyzer . | . . . . . . . . . . . . . . . . . . . . . . . Garrison Access Hacks 1 | . . . . . . . . . . . 1 . . . . . . . . . . . Seal Access 1 | . . . . . . . . . . . 1 . . . . . . . . . . . Unauthorized Hacks 2 | . . . . . . . . . . . 2 . . . . . . . . . . . Terminals 2 | . . . . . . . . . . . 2 . . . . . . . . . . . Botnet 1 | . . . . . . . . . . . 1 . . . . . . . . . . . Operators 1 | . . . . . . . . . . . 1 . . . . . . . . . . . Fabricators . | . . . . . . . . . . . . . . . . . . . . . . . Repair Stations . | . . . . . . . . . . . . . . . . . . . . . . . Recycling Units . | . . . . . . . . . . . . . . . . . . . . . . . Scanalyzers . | . . . . . . . . . . . . . . . . . . . . . . . Garrison Access . | . . . . . . . . . . . . . . . . . . . . . . . Data Cores Recovered 2 | . . . . . . . . . . 1 1 . . . . . . . . . . . Used 1 | . . . . . . . . . . . 1 . . . . . . . . . . . Hacking Detections 40 | . 2 . . 6 . 1 5 1 . 1 2 . . . . 2 4 . 4 2 7 3 Full Trace Events 4 | . 1 . . 2 . . . . . . . . . . . . 1 . . . . . Feedback Events . | . . . . . . . . . . . . . . . . . . . . . . . Feedback Blocked . | . . . . . . . . . . . . . . . . . . . . . . . Robot Schematics Acquired . | . . . . . . . . . . . . . . . . . . . . . . . Robots Built . | . . . . . . . . . . . . . . . . . . . . . . . Authchips . | . . . . . . . . . . . . . . . . . . . . . . . Time . | . . . . . . . . . . . . . . . . . . . . . . . Total Robot Build Rating . | . . . . . . . . . . . . . . . . . . . . . . . Part Schematics Acquired 5 | . . . . . . . . . . . 1 . . 4 . . . . . . . . Parts Built . | . . . . . . . . . . . . . . . . . . . . . . . Authchips . | . . . . . . . . . . . . . . . . . . . . . . . Time 187 | . . . . . . . . . . . . . . . . . 187 . . . . . Total Part Build Rating . | . . . . . . . . . . . . . . . . . . . . . . . Parts Repaired . | . . . . . . . . . . . . . . . . . . . . . . . Time . | . . . . . . . . . . . . . . . . . . . . . . . Parts Recycled . | . . . . . . . . . . . . . . . . . . . . . . . Recycled Matter . | . . . . . . . . . . . . . . . . . . . . . . . Retrieved Matter . | . . . . . . . . . . . . . . . . . . . . . . . Retrieved Components . | . . . . . . . . . . . . . . . . . . . . . . . Parts Scanalyzed . | . . . . . . . . . . . . . . . . . . . . . . . Part Schematics Acquired . | . . . . . . . . . . . . . . . . . . . . . . . Parts Damaged . | . . . . . . . . . . . . . . . . . . . . . . . Bothacking | -11 -10 -10 -10 -9 -9 -6 -6 -6 -6 -6 -5 -5 -5 -5 -4 -4 -4 -4 -3 -3 -2 -1 ------------ Run | Yrd Mat Min Sub Rec Scr Fac Ext Cet Arc Hub Fac Upp Upp Zhi Pro Fac Arm Lab Res Tes Res Acc Used RIF Installer . | . . . . . . . . . . . . . . . . . . . . . . . Robots Hacked 3 | . . . . 2 . . . . . . . . . . . . . 1 . . . . Non-combat 2 | . . . . 2 . . . . . . . . . . . . . . . . . . Combat 1 | . . . . . . . . . . . . . . . . . . 1 . . . . Robot Hacks Applied 3 | . . . . 2 . . . . . . . . . . . . . 1 . . . . parse_system 3 | . . . . 2 . . . . . . . . . . . . . 1 . . . . Relay Couplers Released 4 | . . . . . . 2 . . . 2 . . . . . . . . . . . . Machine Destruction 4 | . . . . . . 2 . . . 2 . . . . . . . . . . . . Fabnet Peak Effective % . | . . . . . . . . . . . . . . . . . . . . . . . Robots Rewired 28 | . . . . 4 . . 21 . . . . . . . . . 3 . . . . . Allies Hacked . | . . . . . . . . . . . . . . . . . . . . . . . Hacks Repelled . | . . . . . . . . . . . . . . . . . . . . . . . Allies | -11 -10 -10 -10 -9 -9 -6 -6 -6 -6 -6 -5 -5 -5 -5 -4 -4 -4 -4 -3 -3 -2 -1 -------- Run | Yrd Mat Min Sub Rec Scr Fac Ext Cet Arc Hub Fac Upp Upp Zhi Pro Fac Arm Lab Res Tes Res Acc Total Allies 63 | . . . . 4 . . 31 5 . . . . . . . . 3 . . . . 20 Largest Group 16 | . . . . 4 4 4 16 15 12 8 . . . . . . 2 . . . . 9 Highest-Rated Group 806 | . . . . 90 90 90 556 806 792 547 . . . . . . 112 . . . . 129 Highest-Rated Ally 159 | . . . . 27 27 27 159 159 159 96 . . . . . . 56 . . . . 15 Total Orders 1 | . . . . . 1 . . . . . . . . . . . . . . . . . RETURN 1 | . . . . . 1 . . . . . . . . . . . . . . . . . Ally Attacks 335 | . . . . . . 16 169 39 31 11 . . . . . . 8 . . . . 61 Total Damage 8012 | . . . . . . 250 3869 960 941 199 . . . . . . 361 . . . . 1432 Kills 48 | . . . . . . 3 31 3 4 1 . . . . . . 1 . . . . 5 Allies Corrupted 4 | . . . . . . . 1 . . 3 . . . . . . . . . . . . Allies Melted 1 | . . . . . . . 1 . . . . . . . . . . . . . . . Intel | -11 -10 -10 -10 -9 -9 -6 -6 -6 -6 -6 -5 -5 -5 -5 -4 -4 -4 -4 -3 -3 -2 -1 ------- Run | Yrd Mat Min Sub Rec Scr Fac Ext Cet Arc Hub Fac Upp Upp Zhi Pro Fac Arm Lab Res Tes Res Acc Robot Analysis Total 5 | . . . . 1 . . . . . . . . . 4 . . . . . . . . Derelict Logs Recovered 8 | . . 1 . . 2 . . . . . . 2 2 . 1 . . . . . . . Drone Launches 6 | . . . . . 3 3 . . . . . . . . . . . . . . . . Drone Recoveries 3 | . . . . . 3 . . . . . . . . . . . . . . . . . Exploration | -11 -10 -10 -10 -9 -9 -6 -6 -6 -6 -6 -5 -5 -5 -5 -4 -4 -4 -4 -3 -3 -2 -1 ------------- Run | Yrd Mat Min Sub Rec Scr Fac Ext Cet Arc Hub Fac Upp Upp Zhi Pro Fac Arm Lab Res Tes Res Acc Turns Passed 16539 | 3 63 658 219 1468 6107 490 1079 406 164 181 1430 401 685 324 320 551 975 61 217 129 228 380 Spaces Moved 10215 | 3 51 433 104 819 3048 337 693 153 85 107 744 226 381 166 181 314 426 83 397 275 496 693 Core 573 | . . . . . 24 . . . . . . . . . . . 24 83 276 . . 166 Treads 2882 | . . 19 104 187 . . . 127 85 107 744 226 381 166 181 314 241 . . . . . Legs 2803 | 3 51 414 . . 1118 337 693 26 . . . . . . . . 161 . . . . . Wheels 2433 | . . . . 632 1801 . . . . . . . . . . . . . . . . . Hover 41 | . . . . . . . . . . . . . . . . . . . 41 . . . Flight 1483 | . . . . . 105 . . . . . . . . . . . . . 80 275 496 527 Fastest Speed 30 | 120 120 120 160 160 40 107 105 120 160 160 160 160 160 165 165 158 50 50 30 45 42 35 Average Speed 142 | 120 120 121 160 171 188 123 108 153 160 160 160 160 161 165 165 161 182 53 49 45 43 50 Slowest Speed 1500 | 120 120 160 160 175 1500 187 120 160 160 160 160 160 165 165 165 237 237 100 76 45 45 100 Overloaded Moves . | . . . . . . . . . . . . . . . . . . . . . . . Propulsion Burnouts . | . . . . . . . . . . . . . . . . . . . . . . . Robots Hopped 53 | . . . . . . . . 9 . . . . . . . . . . 8 2 22 12 Cave-ins Triggered . | . . . . . . . . . . . . . . . . . . . . . . . Teleports 2 | . . . . . . . . . . . . . . . . . 1 1 . . . . Exploration Rate (%) 47 | 2 23 90 8 94 94 13 88 66 87 22 29 65 59 63 50 12 30 87 21 33 21 25 Regions Visited 22 Branch Regions 15 Pre-discovered Areas 10 | . . 1 . . 5 . . . . . . . 1 3 . . . . . . . . Known Exits Taken 7 | . 1 . . . . 1 . . . 1 1 . . . 1 . . 1 . 1 . . Unknown Exits Taken 15 | 1 . 1 1 1 1 . 1 1 1 . . 1 1 1 . 1 1 . 1 . 1 . Scrap Searched 19 | . . 1 . . 12 . . . . . . 2 3 . 1 . . . . . . . Spaces Dug 17 | . . . . . . 1 . . . . . . . . 2 6 . . . . 1 7 Terrain Destroyed 430 | . . . . . . 14 5 . 4 154 64 13 14 . 4 57 93 . . . 1 7 Melee 8 | . . . . . . . . . . . . . . . . . . . . . 1 7 Projectile 136 | . . . . . . 5 5 . 4 . 33 13 14 . 4 25 33 . . . . . AOE 286 | . . . . . . 9 . . . 154 31 . . . . 32 60 . . . . . Terrain Rammed . | . . . . . . . . . . . . . . . . . . . . . . . Walls Destroyed . | . . . . . . . . . . . . . . . . . . . . . . . Machines Disabled . | . . . . . . . . . . . . . . . . . . . . . . . Actions | -11 -10 -10 -10 -9 -9 -6 -6 -6 -6 -6 -5 -5 -5 -5 -4 -4 -4 -4 -3 -3 -2 -1 --------- Run | Yrd Mat Min Sub Rec Scr Fac Ext Cet Arc Hub Fac Upp Upp Zhi Pro Fac Arm Lab Res Tes Res Acc Total 11525 | 2 52 498 123 865 3410 390 915 305 95 111 901 245 413 193 197 335 521 93 405 277 483 696 Wait 615 | . . 23 . 4 279 8 75 119 . . 76 . 8 . 12 . . . 8 . 3 . Move 10097 | 2 50 432 103 818 3047 336 692 136 84 106 743 225 380 165 180 313 425 82 383 270 454 671 Hop 44 | . . . . . . . . 7 . . . . . . . . . . 5 2 20 10 Pick Up 76 | . . 1 3 3 20 6 7 4 1 . 12 4 . 4 . 2 6 1 . 2 . . Fast Attach 69 | . . 2 . 4 11 5 3 9 . . 4 . 2 3 1 1 10 3 5 2 2 2 Attach 49 | . . 4 . 4 5 6 3 2 . 1 8 1 4 . . 2 6 2 1 . . . Detach 34 | . . 1 . 3 11 4 . 6 . . 2 . . 1 1 . 1 1 2 . . 1 Swap 31 | . . 2 . 2 4 4 9 1 . . 3 1 . . . 2 3 . . . . . Drop 85 | . . . . 5 21 8 10 13 . . 8 4 1 . . 3 8 . . 1 2 1 Fire 292 | . . 32 17 9 . 13 52 8 8 2 43 10 17 20 3 11 43 4 . . . . Melee 22 | . . . . 11 1 . . . . . . . . . . . . . . . 2 8 Ram 6 | . . . . 2 . . . . . . . . . . . . . . 1 . . 3 Kick 4 | . 2 1 . . . . 1 . . . . . . . . . . . . . . . Crush 7 | . . . . . . . . . 2 2 2 . . . . 1 . . . . . . Escape Stasis . | . . . . . . . . . . . . . . . . . . . . . . . Rewire 93 | . . . . . 11 . 63 . . . . . . . . . 19 . . . . . Trap . | . . . . . . . . . . . . . . . . . . . . . . . Miscellaneous 1 | . . . . . . . . . . . . . 1 . . . . . . . . . Route ------- -11/Scrapyard -10/Materials -10/Mines (discovered 3 exits: [*Mat x2] / [*Sub]) -10/Subcaves -9/Recycling -9/Scraptown (discovered 2 exits: *Fac x2) -6/Factory (discovered 6 exits: Fac x2 / Low x2 / *Ext x2) -6/Extension (discovered 2 exits: *Fac / *Cet) -6/Cetus -6/Archives (discovered 3 exits: *Fac / *Hub x2) -6/Hub_04(d) -5/Factory (discovered 2 exits: *Upp x2) -5/Upper Caves -5/Upper Caves -5/Zhirov -4/Proximity Caves -4/Factory (discovered 2 exits: Res / *Arm) -4/Armory -4/Lab -3/Research (discovered 4 exits: Res x3 / *Tes) -3/Testing -2/Research -1/Access (discovered 1 exit: Com) History --------- Turn | Location | Event 1 | -11/Scrapyard | Discovered new exit (range 3) 4 | -11/Scrapyard | Entered Materials 9 | -10/Materials | Identified exit to Mines 67 | -10/Materials | Entered Mines 74 | -10/Mines | Met a Derelict bent on vengeance 309 | -10/Mines | Build established: Mutant 347 | -10/Mines | Discovered new exit (range 9) 558 | -10/Mines | Learned location of Zion (-7) 575 | -10/Mines | Discovered new exit (range 8) 641 | -10/Mines | Lost 3 parts (1p1n1w) 717 | -10/Mines | Discovered new exit (range 5) 725 | -10/Mines | Entered Subcaves 781 | -10/Subcaves | Ambushed by Subdwellers from Twisted Machinery 913 | -10/Subcaves | Core integrity fell below 50% 923 | -10/Subcaves | Discovered new exit (range 14) 944 | -10/Subcaves | Entered Recycling 971 | -9/Recycling | Lost 4 parts (1p1n1u1w) 2116 | -9/Recycling | Core integrity fell below 20% 2366 | -9/Recycling | Scanned before Scraplab entrance 2391 | -9/Recycling | Entered Scraplab 2405 | -9/Recycling | Discovered new exit (range 2) 2412 | -9/Recycling | Entered Scraptown 2412 | -9/Scraptown | Accompanied by 4 allies 2559 | -9/Scraptown | Build established: Commander-Mutant 2667 | -9/Scraptown | Visited Shadow of the Wyrm 2704 | -9/Scraptown | Visited Bundlers 2793 | -9/Scraptown | Visited Cyclists 2819 | -9/Scraptown | Visited Symbiants 3224 | -9/Scraptown | Scanned Subdweller tech in exchange for log data 3232 | -9/Scraptown | Learned location of 2 exits from Lower Caves 3310 | -9/Scraptown | Discovered new exit (range 13) 3351 | -9/Scraptown | Visited Observation Area 3398 | -9/Scraptown | Visited Fellowship of the Rings 3428 | -9/Scraptown | Visited Junk Repository 3472 | -9/Scraptown | Visited UFD Registry 3475 | -9/Scraptown | Registered with UFD as "Hammertalker" 3502 | -9/Scraptown | Visited Scrapoid Research Area 3799 | -9/Scraptown | Visited Derelict Rescue Squad 3807 | -9/Scraptown | Found DRS Beacon 3842 | -9/Scraptown | Visited Scrap Suit Storage 3899 | -9/Scraptown | Visited Curators Association 3945 | -9/Scraptown | Visited DA-N13 Charitable Foundation 3951 | -9/Scraptown | Found DCF Scrap (31 items) 4039 | -9/Scraptown | Visited Science Testing Area 4057 | -9/Scraptown | Visited Cartography Club 4406 | -9/Scraptown | Learned location of Storage (-9) 4406 | -9/Scraptown | Learned location of Cetus (-6) 4406 | -9/Scraptown | Learned location of Testing (-3) 4406 | -9/Scraptown | Learned location of Quarantine (-2) 4406 | -9/Scraptown | Learned 8 Factory zone layouts 4406 | -9/Scraptown | Learned 16 Factory zone layouts 4406 | -9/Scraptown | Learned 16 Research zone layouts 4406 | -9/Scraptown | Learned 12 Lower Caves zone layouts 4406 | -9/Scraptown | Learned 16 Lower Caves zone layouts 4406 | -9/Scraptown | Learned 20 Proximity Caves zone layouts 4406 | -9/Scraptown | Learned Storage emergency access door positions 4406 | -9/Scraptown | Learned location of 2 exits from Factory 4406 | -9/Scraptown | Learned location of 2 exits from Proximity Caves 4406 | -9/Scraptown | Learned location of 3 exits from Proximity Caves 4506 | -9/Scraptown | Visited Abandonware Association 4521 | -9/Scraptown | Learned abandonware demo "OVRCLOCK.EXE" 4523 | -9/Scraptown | Learned abandonware demo "ERRANTS.EXE" 4523 | -9/Scraptown | Learned abandonware demo "POISON.EXE" 4557 | -9/Scraptown | Visited Science Guys 4607 | -9/Scraptown | Visited Chapter 10 5332 | -9/Scraptown | Entered Cyclist Reading Room 6444 | -9/Scraptown | Discovered new exit (range 10) 8519 | -9/Scraptown | Entered Factory 8519 | -6/Factory | Accompanied by 4 allies 8519 | -6/Factory | Evolved 8 slots: Power x1, Propulsion x2, Utility x4, Weapon x1 8520 | -6/Factory | Identified exit to Lower Caves 8521 | -6/Factory | Identified exit to Extension 8521 | -6/Factory | Identified exit to Factory 8837 | -6/Factory | Garrison activated, responded to threat 9009 | -6/Factory | Entered Extension 9009 | -6/Extension | Accompanied by 5 allies 9065 | -6/Extension | Rescued a captive Derelict 9102 | -6/Extension | Build established: Commander-Tank 9261 | -6/Extension | Rescued a captive Derelict 9262 | -6/Extension | Rescued a captive Derelict 9318 | -6/Extension | Spotted B-75 Beast 9336 | -6/Extension | Spotted B-75 Beast 9358 | -6/Extension | Allies destroyed B-75 Beast 9371 | -6/Extension | Allies destroyed B-75 Beast 9401 | -6/Extension | Lost 6 allies 9585 | -6/Extension | Rescued A7 9611 | -6/Extension | Rescued a captive Derelict 9612 | -6/Extension | Rescued a captive Derelict 9709 | -6/Extension | First assault squad dispatched 9765 | -6/Extension | Rescued a captive Derelict 9766 | -6/Extension | Rescued a captive Derelict 9876 | -6/Extension | Rescued a captive Derelict 9906 | -6/Extension | Rescued a captive Derelict 9909 | -6/Extension | Lost 10 allies 10042 | -6/Extension | Discovered exit to Factory (range 10) 10043 | -6/Extension | Discovered new exit (range 6) 10088 | -6/Extension | Entered Cetus 10088 | -6/Cetus | Accompanied by 15 allies (A7) 10093 | -6/Cetus | Acquired a Cetus Manufacturing Module code from A7 10097 | -6/Cetus | Spotted Cetus Guard 10097 | -6/Cetus | Spotted Cetus Guard 10099 | -6/Cetus | Spotted Cetus Guard 10103 | -6/Cetus | Spotted Cetus Guard 10130 | -6/Cetus | Destroyed Cetus Guard 10133 | -6/Cetus | Allies destroyed Cetus Guard 10136 | -6/Cetus | Destroyed Cetus Guard 10143 | -6/Cetus | Destroyed Cetus Guard 10165 | -6/Cetus | Lost 7 allies 10316 | -6/Cetus | Started Cetus Manufacturing Module 10341 | -6/Cetus | Manufactured an Enhanced Grunt 10366 | -6/Cetus | Manufactured an Enhanced Grunt 10369 | -6/Cetus | Discovered new exit (range 22) 10391 | -6/Cetus | Manufactured an Enhanced Grunt 10416 | -6/Cetus | Manufactured an Enhanced Grunt 10441 | -6/Cetus | Manufactured an Enhanced Grunt 10444 | -6/Cetus | Build established: Scavenger-Tank 10494 | -6/Cetus | Entered Archives 10494 | -6/Archives | Accompanied by 12 allies (A7) 10539 | -6/Archives | Discovered new exit (range 22) 10547 | -6/Archives | Unable to access archive contents 10552 | -6/Archives | Lost 3 allies 10563 | -6/Archives | Unable to access archive contents 10570 | -6/Archives | Discovered exit to Factory (range 17) 10578 | -6/Archives | Discovered new exit (range 18) 10589 | -6/Archives | Unable to access archive contents 10658 | -6/Archives | Entered Hub_04(d) 10658 | -6/Hub_04(d) | Accompanied by 8 allies 10780 | -6/Hub_04(d) | Network Hub disabled 10793 | -6/Hub_04(d) | Spotted Lightning 10795 | -6/Hub_04(d) | Spotted Lightning 10796 | -6/Hub_04(d) | Spotted Lightning 10801 | -6/Hub_04(d) | Spotted Lightning 10805 | -6/Hub_04(d) | Spotted Lightning 10810 | -6/Hub_04(d) | Discovered exit to Factory (range 19) 10810 | -6/Hub_04(d) | Spotted Lightning 10814 | -6/Hub_04(d) | System corruption reached 10% 10815 | -6/Hub_04(d) | Spotted Lightning 10816 | -6/Hub_04(d) | Spotted Lightning 10824 | -6/Hub_04(d) | Spotted Lightning 10831 | -6/Hub_04(d) | Lost 7 allies 10839 | -6/Hub_04(d) | Entered Factory 10839 | -5/Factory | Evolved 2 slots: Utility x2 11697 | -5/Factory | Identified exit to Upper Caves 11874 | -5/Factory | Spotted B-75 Beast 12269 | -5/Factory | Entered Upper Caves 12355 | -5/Upper Caves | Learned Factory non-interactive machine intel 12379 | -5/Upper Caves | Learned Factory stockpile data 12403 | -5/Upper Caves | Found DCF Scrap (12 items) 12640 | -5/Upper Caves | Discovered new exit (range 18) 12670 | -5/Upper Caves | Entered another Upper Caves area 12699 | -5/Upper Caves | Learned 4 Factory zone layouts 13139 | -5/Upper Caves | Activated DRS Beacon 13206 | -5/Upper Caves | Lost 6 parts (1n2u3w) 13349 | -5/Upper Caves | Discovered new exit (range 5) 13355 | -5/Upper Caves | Entered Zhirov 13355 | -5/Zhirov | Discovered new exit (range 3) 13385 | -5/Zhirov | Met Zhirov 13417 | -5/Zhirov | Learned location of Command (-1) 13441 | -5/Zhirov | Zhirov requested help retrieving the SGEMP Prototype 13476 | -5/Zhirov | Found Alien Artifact 13476 | -5/Zhirov | Identified Integrated Reactor 13476 | -5/Zhirov | Installed Integrated Reactor, increased core energy generation (+10) 13496 | -5/Zhirov | Found Alien Artifact 13497 | -5/Zhirov | Build established: Scavenger-Skirmisher 13679 | -5/Zhirov | Entered Proximity Caves 13680 | -4/Proximity Caves | Identified exit to Factory 13829 | -4/Proximity Caves | Build established: Tank 13917 | -4/Proximity Caves | Learned location of 1 exit from Research 13999 | -4/Proximity Caves | Entered Factory 13999 | -4/Factory | Evolved 2 slots: Utility x1, Weapon x1 14000 | -4/Factory | Identified exit to Research 14002 | -4/Factory | Loaded intel: 209 non-interactive machine locations 14247 | -4/Factory | Found Quantum Capacitor 14267 | -4/Factory | Build established: Derelict-Tank 14530 | -4/Factory | Discovered new exit (range 11) 14550 | -4/Factory | Entered Armory 14950 | -4/Armory | Build established: Tank 15396 | -4/Armory | Build established: Hacker-Gunner 15460 | -4/Armory | Lost 5 parts (1n2u2w) 15511 | -4/Armory | Released all parts (8) 15524 | -4/Armory | Identified Transdimensional Reconstructor 15524 | -4/Armory | Warped through subspace to slip node 15524 | -4/Armory | Discovered new exit (range 1) 15525 | -4/Armory | Entered Lab 15525 | -4/Lab | Discovered exit to Research (range 9) 15529 | -4/Lab | Destroyed 8 combat bots 15531 | -4/Lab | Unable to decrypt terminal 15531 | -4/Lab | Opened the door to a hidden lab 15532 | -4/Lab | Gained access to the hidden lab's interior 15536 | -4/Lab | Found Alien Artifact 15536 | -4/Lab | Identified Core Reset Matrix 15536 | -4/Lab | Used Core Reset Matrix 15538 | -4/Lab | Detected by scanners 15540 | -4/Lab | Sensed 3 artifacts in vicinity 15541 | -4/Lab | Lost 7 parts (1p3n1u2w) 15545 | -4/Lab | Found Transdimensional Reconstructor 15547 | -4/Lab | Confronted by A5 15552 | -4/Lab | Found Integrated Dissipator 15552 | -4/Lab | Installed Integrated Dissipator, increased core heat dissipation (+20) 15555 | -4/Lab | Core integrity fell below 50% 15556 | -4/Lab | Warped through subspace 15559 | -4/Lab | Unable to decrypt terminal 15566 | -4/Lab | Found Prototype Special Weapon 15566 | -4/Lab | Identified Gui. Remote Datajack 15579 | -4/Lab | Discovered exit to Research (range 9) 15582 | -4/Lab | Unable to decrypt terminal 15586 | -4/Lab | Entered Research 15586 | -3/Research | Evolved 2 slots: Propulsion x2 15637 | -3/Research | Released all parts (6) 15718 | -3/Research | Core integrity fell below 50% 15729 | -3/Research | Spotted B-86 Titan 15791 | -3/Research | Identified exit to Research 15799 | -3/Research | Discovered new exit (range 9) 15803 | -3/Research | Entered Testing 15807 | -3/Testing | Build established: Alien-Mutant 15932 | -3/Testing | Entered Research 15932 | -2/Research | Evolved 2 slots: Utility x2 16052 | -2/Research | Spotted B-90 Cyclops 16145 | -2/Research | Discovered new exit (range 13) 16160 | -2/Research | Entered Access 16160 | -1/Access | Evolved 2 slots: Utility x2 16359 | -1/Access | Assembled infested ambush trap array 16394 | -1/Access | Identified exit to Command 16410 | -1/Access | Search patrols dispatched 16492 | -1/Access | Spotted B-99 Colossus 16495 | -1/Access | Intercept squad dispatched 16499 | -1/Access | Spotted Tracker 16499 | -1/Access | Spotted Tracker 16504 | -1/Access | Core integrity fell below 50% 16509 | -1/Access | Emitted hypermatrix ping 16514 | -1/Access | Assembled emerged from beneath the floor 16514 | -1/Access | Allies destroyed Tracker 16528 | -1/Access | Lost 3 parts (2n1w) 16530 | -1/Access | Core integrity fell below 20% 16538 | -1/Access | Spotted Combat Programmer 16540 | -1/Access | Core destroyed Last Messages --------------- 16508_ Penetrated by Slug. 16509_ Emitted hypermatrix ping. 16514_ Assembled emerge from beneath the floor. 16514_ Slug penetrates as-48621. 16514_ as-40846 sneak attacks. 16514_ Tracker destroyed. 16514_ as-78045 Unknown Hover Unit temporarily disabled. 16515_ Slug penetrates H-88 Terminator. 16516_ Slug penetrates Wall. 16517_ as-48621 destroyed. 16517_ Slug penetrates Wall. 16522_ S-43 Plague suffers critical hit (Destroy). 16522_ S-43 Plague destroyed. 16532_ Door malfunctions. 16537_ Cld. Impulse Thruster destroyed. 16539_ W-44 Eye sends out distress signal. 16540_ Slammed into A-15 Conveyor. 16540_ Destabilizing: Core damaged (-80). Map ----- +----------------------------------------------------+ | ?????#[#????????????????????# #??# # | | ?????#%#????????????????????# #??# # | | ?????#=#???#####????????????# #??# # | | ?????# #??? #????????????# #??# # | | ?????#%#?? #????????????# #??# ? | | ?????#%#?? #????????????# #??# ?? | | ????## ## #????????????# #############+### | | ????# # = #????????????# | | ????# + #????????????# | | ????# ###########?????????# | | ????## ## #?????????# | | ?????# ## #?????????##+##### ########## | | ###### ## #????????????????# # # | | # #????????????????# # # | | + #????????????????+ / "" # | | # #????????????????# # """ # | | # #????????????????# # T" ? | | # #????????????????# #? """ # | | ########+##????????????????# #? "" # | | #??????# #?????????????????# #?? | | #??????# #???############### #?? # | | #??????# #???# #???#####? | | ##?????# #???# #????????? | | #???# #????????? | | #???# #????????? | | #???# @########## #????????? | | " #???# A#????????# #????????? | | """ ????# #????????# #????????? | | """ #???# #????????# #????????? | | " #???# w #????????# #????????? | | ????# #????????? #????????? | | ????# #????????? #????????? | | ? ???? #????????? #????????? | | # ?? ??? #????????? #????????? | | # ????? ???? ?????????? #????????? | | ????? ??? ?????????? ?????????? | | ##### #????? ?? ??????????? ???????????? | | #####+####### #??# ???????????????????????? | | # ## #??# ???????????????????????? | | #= ## ##????##+##???????????????????????? | | # """ # #????????????????????????????????? | | " Y" + #????????????????????????????????? | | # """ # #????????????????????????????????? | | # ## ##????????????????????????????????? | | #/ ] ## #?????????????????????????????????? | | #############+###???????????????????????????????? | | #??????# #???????????????????????????????? | | ######## = #???????????????????????????????? | | # #???????????????????????????????? | | # #???????????????????????????????? | +----------------------------------------------------+ Best States ------------- Heat Dissipation 90 Coolant Potential 80 Energy Generation 45 Energy Capacity 800 Matter Stores 300 Matter Capacity 300 Sight Range 22 Terrain Scan Density 10 ECM Strength 2 Power Amplification 20 Armor Coverage 675 Resistance: KI 30 Core Shielding 40 Phase Shifting 10 Evasion (%) 65 Armor Integrity Analysis 40 Recoil Reduction 6 Matter Filtering 50 Particle Charging 20 Offensive Hacking 12 Defensive Hacking 14 Trap Extractor Capacity 6 Item Schematics ----------------- None Robot Schematics ------------------ None Fabricated ------------ Nothing Alien Tech Used ----------------- Integrated Reactor Transdimensional Reconstructor Core Reset Matrix Integrated Dissipator Achievements -------------- None Challenges ------------ None Game ------ Seed BraceCorruptionRailgun Manual? 0 Play Time 02:23:50 Cumulative 180.1 hours Start 2025.03.04 @ 16:57:18 End 2025.03.05 @ 20:49:15 Sessions 2 Manual Loads 0 Difficulty Rogue Special Mode None Game No. 127 Rogue 127 Adventurer 0 Explorer 0 Win Type - Total 9 Types 9/0/0/0/0/0/0/0/0 Lore% 74 Gallery% 67 Achievement% 53 Wizard Run 0 Options --------- Layout 2 ASCII 0 Keyboard 1 Movement Arrows Keybinds 0 Fullscreen 1 Font 24/Proggy Map View 50x44 Zoom Use 0% Tactical HUD 1 Map Filters NONE Filters NONE Steam 1 RUN: f704c3e4-173e-40a3-bd3a-08325fe37450